[Event "Swiss National League-A 2024"]
[Site "Luzern"]
[Date "2024.10.12"]
[Round "8.32"]
[White "Frey, Fabian"]
[Black "Schweizer, Samuel"]
[Result "0-1"]
[ECO "A30"]
[WhiteElo "2179"]
[BlackElo "2006"]
[Annotator "RC"]
[PlyCount "106"]
[EventDate "2023.10.03"]
[EventType "team-tourn"]
[EventCountry "SUI"]
[SourceTitle "playchess.com"]
[Source "ChessBase"]
[SourceQuality "1"]
[TimeControl "40/8400+30:20/3000+30:900+30"]

1. c4 {[%emt 0:40:47]} b6 {[%emt 0:40:35]} 2. Nf3 {[%emt 0:00:53]} Bb7 {[%emt 0:00:26]} 3. b3 {[%emt 0:02:18]} Nf6 {[%emt 0:04:12]} 4. Bb2 {[%emt 0:00:13]} c5 {[%emt 0:00:39]} 5. g3 {[%emt 0:00:50]} Nc6 {[%emt 0:01:37]} 6. Bg2 {[%emt 0:00:17]} d6 {[%emt 0:03:11]} 7. O-O {[%emt 0:01:12]} e5 {[%emt 0:03:55]} 8. Nc3 {[%emt 0:04:38]} g6 {[%emt 0:04:52]} 9. e3 {[%emt 0:13:05]} Bg7 {[%emt 0:01:09]} 10. d4 {[%emt 0:00:32]} O-O {[%emt 0:01:35]} 11. a3 {[%emt 0:09:25]} Qe7 {[%emt 0:03:17]} 12. d5 {[%emt 0:03:55]} Na5 {[%emt 0:01:43]} 13. Nd2 {[%emt 0:01:22]} Bc8 {[%emt 0:00:35]} 14. b4 {[%emt 0:02:06]} Nb7 {[%emt 0:00:15]} 15. Nb3 {[%emt 0:01:35]} Bd7 {[%emt 0:02:12]} 16. b5 {[%emt 0:03:07]} Ng4 {[%emt 0:01:54]} 17. a4 {[%emt 0:08:05]} f5 {[%emt 0:01:28]} 18. a5 {[%emt 0:01:21]} e4 {[%emt 0:02:49]} 19. axb6 {[%emt 0:21:22]} axb6 {[%emt 0:00:22]} 20. Na4 {[%emt 0:02:05]} Bxb2 {[%emt 0:01:28]} 21. Nxb2 {[%emt 0:00:04]} h5 {[%emt 0:00:58]} 22. h3 {[%emt 0:07:03]} Ne5 {[%emt 0:00:14]} 23. Qd2 {[%emt 0:02:58]} h4 {[%emt 0:01:14]} 24. Ra6 {[%emt 0:01:22]} g5 {[%emt 0:02:08]} 25. Rfa1 {[%emt 0:04:46]} Rae8 {[%emt 0:01:31]} 26. Rxb6 {[%emt 0:03:28]} Nd8 {[%emt 0:00:06]} 27. Na5 {[%emt 0:05:30]} Ndf7 {[%emt 0:00:36]} 28. Nc6 {[%emt 0:01:03]} Qf6 {[%emt 0:00:14]} 29. Nxe5 {[%emt 0:01:41]} Rxe5 {[%emt 0:00:25]} 30. Rb7 {[%emt 0:01:53]} Bc8 {[%emt 0:01:30]} 31. Rba7 {[%emt 0:00:02]} g4 {[%emt 0:00:29]} 32. b6 {[%emt 0:01:33]} gxh3 {[%emt 0:00:51]} 33. Bxh3 {[%emt 0:00:59]} Ng5 {[%emt 0:01:17]} 34. Bg2 {[%emt 0:00:32]} h3 {[%emt 0:01:34]} 35. Bh1 {[%emt 0:02:19]} h2+ {[%emt 0:00:38]} 36. Kf1 {[%emt 0:01:44]} Qh6 {[%emt 0:00:49]} 37. Qd1 {[%emt 0:01:14]} Qh3+ {[%emt 0:01:00]} 38. Ke2 {[%emt 0:00:58]} f4 {[%emt 0:00:11]} 39. Kd2 {[%emt 0:00:53]} fxe3+ {[%emt 0:00:12]} 40. Kc3 {[%emt 0:00:47]} exf2 {[%emt 0:00:47]} 41. Rc7 {[%emt 0:22:50]} Bg4 {[%emt 0:02:13]} 42. Qd2 {[%emt 0:13:21]} Qxg3+ {[%emt 0:01:25]} 43. Kc2 {[%emt 0:00:10]} e3 {[%emt 0:00:51]} 44. Qc3 {[%emt 0:05:37]} Bf5+ {[%emt 0:00:46]} 45. Kb3 {[%emt 0:00:31]} Ne4 {[%emt 0:01:47]} 46. Bxe4 {[%emt 0:00:36]} Bxe4 {[%emt 0:00:40]} 47. b7 {[%emt 0:01:17]} h1=Q {[%emt 0:00:26]} 48. Rxh1 {[%emt 0:01:15]} Bxh1 {[%emt 0:00:14]} 49. Rc8 {[%emt 0:01:10]} Ree8 {[%emt 0:01:14]} 50. b8=Q {[%emt 0:03:18]} Rxc8 {[%emt 0:00:18]} 51. Qa7 {[%emt 0:00:37]} Rf7 {[%emt 0:00:23]} 52. Qa6 {[%emt 0:02:45]} Rb8+ {[%emt 0:00:45]} 53. Ka2 {[%emt 0:00:27]} f1=Q {[%emt 0:00:20]} 0-1

[Event "Swiss National League-A 2024"]
[Site "Luzern"]
[Date "2024.10.12"]
[Round "8.33"]
[White "Kuehn, Peter"]
[Black "Edouard, Romain"]
[Result "0-1"]
[ECO "A81"]
[WhiteElo "2333"]
[BlackElo "2540"]
[Annotator "TA"]
[PlyCount "57"]
[EventDate "2023.10.03"]
[EventType "team-tourn"]
[EventCountry "SUI"]
[SourceTitle "playchess.com"]
[Source "ChessBase"]
[SourceQuality "1"]
[TimeControl "40/8400+30:20/3000+30:900+30"]

{[%evp 10,57,26,17,16,11,16,11,5,12,37,35,54,39,61,26,34,28,25,23,72,41,80,56,76,37,26,41,37,-52,-59,-56,-71,-55,-50,-133,-126,-102,-109,-164,-164,-159,-160,-829,-898,-854,-853,-1700,-1792,-29967]} 1. d4 {[%emt 0:40:04]} f5 {[%emt 0:40:45]} 2. g3 {[%emt 0:02:52]} Nf6 {[%emt 0:00:09]} 3. Bg2 {[%emt 0:00:04]} g6 {[%emt 0:00:07]} 4. c3 {[%emt 0:02:20]} Bg7 {[%emt 0:00:10]} 5. Qb3 {[%emt 0:00:05]} Nc6 {[%emt 0:02:26]} 6. Nd2 {[%emt 0:09:10]} d5 {[%emt 0:07:16]} 7. Ndf3 {[%emt 0:04:13]} Ne4 {[%emt 0:02:48]} 8. Bf4 {[%emt 0:00:26]} e6 {[%emt 0:05:51] The position is equal.} 9. h4 {[%emt 0:00:24]} O-O {[%emt 0:00:18]} 10. Nh3 {[%emt 0:13:40]} h6 {[%emt 0:00:27]} 11. Rd1 {[%emt 0:07:07]} Qe7 {[%emt 0:03:01]} 12. Be3 {[%emt 0:01:56]} b6 {[%emt 0:02:10]} 13. Nf4 {[%emt 0:00:49]} Qf7 {[%emt 0:00:07]} 14. Nd3 {[%emt 0:02:27]} Na5 {[%emt 0:12:32]} (14... Bb7 $11) 15. Qc2 $16 {[%emt 0:01:32]} Nc4 {[%emt 0:00:52]} 16. Bf4 {[%emt 0:00:35]} c5 {[%emt 0:00:20]} 17. Nfe5 {[%emt 0:02:27]} Nxe5 {[%emt 0:00:15]} 18. Bxe5 {[%emt 0:05:03]} c4 {[%emt 0:20:18]} 19. Bxg7 {[%emt 0:08:14]} ({White should try} 19. Nf4 $14) 19... cxd3 $15 {[%emt 0:00:42]} 20. exd3 {[%emt 0:00:05]} Kxg7 {[%emt 0:00:23]} 21. dxe4 {[%emt 0:00:05]} fxe4 {[%emt 0:00:58]} 22. Qe2 {[%emt 0:05:31] [#] Inhibits Ba6.} ({White should play} 22. Bf1 $15) 22... Ba6 $1 $17 {[%emt 0:02:25][%mdl 512]} 23. Qe3 {[%emt 0:00:05]} Qc7 {[%emt 0:01:35] White is weak on the light squares} 24. Rd2 {[%emt 0:00:38]} (24. b3 $17 {keeps fighting.}) 24... Rf6 $19 {[%emt 0:08:32]} 25. Kd1 {[%emt 0:02:48]} Raf8 {[%emt 0:00:35][%cal Of6f3] Strongly threatening ...Rf3! Black is more active.} 26. Rh2 $2 {[%emt 0:00:15] [#]} (26. Kc1 $17) 26... Rf3 $1 {[%emt 0:08:30][%mdl 512] Black is clearly winning.} 27. Bxf3 {[%emt 0:00:27]} Rxf3 {[%emt 0:00:02]} 28. Qe1 {[%emt 0:00:11]} Qc4 {[%emt 0:00:02]} 29. Kc2 {[%emt 0:02:02] Weighted Error Value: White=0.79/Black=0.06 (flawless) .  Loses game:     	White=1     	---        Mistake:       	White=3     	Black=1      Inaccurate:     	White=2     	Black=1      OK:         	White=10    	Black=6      Best:        	---       	Black=1      Brilliant:      	---       	Black=2} 0-1

[Event "Swiss National League-A 2024"]
[Site "Luzern"]
[Date "2024.10.12"]
[Round "8.34"]
[White "Sokolov, Andrei"]
[Black "Hommeles, Theo"]
[Result "1/2-1/2"]
[ECO "C77"]
[WhiteElo "2516"]
[BlackElo "2396"]
[Annotator "TA"]
[PlyCount "60"]
[EventDate "2023.10.03"]
[EventType "team-tourn"]
[EventCountry "SUI"]
[SourceTitle "playchess.com"]
[Source "ChessBase"]
[SourceQuality "1"]
[TimeControl "40/8400+30:20/3000+30:900+30"]

{[%evp 18,60,15,20,10,3,31,36,58,69,75,66,72,74,72,82,99,106,102,62,54,73,61,36,52,29,24,22,24,0,0,-31,0,-18,0,0,7,8,14,18,42,58,66,62,125]} 1. e4 {[%emt 0:40:09]} e5 {[%emt 0:40:17]} 2. Nf3 {[%emt 0:00:10]} Nc6 {[%emt 0:00:04]} 3. Bc4 {[%emt 0:00:38]} Nf6 {[%emt 0:00:16]} 4. d3 {[%emt 0:00:18]} Be7 {[%emt 0:00:19]} 5. c3 {[%emt 0:04:15]} O-O {[%emt 0:01:17]} 6. Nbd2 {[%emt 0:00:35]} d6 {[%emt 0:07:14]} 7. O-O {[%emt 0:03:41]} Na5 {[%emt 0:05:09]} 8. Bb5 {[%emt 0:00:40]} a6 {[%emt 0:01:51]} 9. Ba4 {[%emt 0:00:27]} b5 {[%emt 0:00:05]} 10. Bc2 {[%emt 0:00:16]} c5 {[%emt 0:00:10]} 11. d4 {[%emt 0:07:08]} Nc6 {[%emt 0:02:34][%cal Ba5c6,Bc6b8,Bb8d7,Bd7c5][%mdl 32]} 12. d5 {[%emt 0:05:00]} Nb8 {[%emt 0:02:39]} 13. a4 {[%emt 0:01:21]} Bb7 {[%emt 0:01:31]} 14. b4 {[%emt 0:13:47]} Nbd7 {[%emt 0:09:09]} 15. Nb3 {[%emt 0:06:45]} Qc8 {[%emt 0:05:50]} 16. h3 {[%emt 0:13:18]} c4 {[%emt 0:05:54]} 17. Na5 {[%emt 0:05:42]} Bd8 {[%emt 0:01:45]} 18. Be3 {[%emt 0:05:07] White is more active.} Bxa5 {[%emt 0:01:52]} 19. bxa5 {[%emt 0:00:16]} Nc5 {[%emt 0:05:01]} 20. Nd2 {[%emt 0:08:40]} Qc7 $1 {[%emt 0:02:09]} 21. Qb1 {[%emt 0:09:06]} Rfb8 $1 {[%emt 0:03:31]} 22. Qb4 {[%emt 0:09:02]} Bc8 {[%emt 0:04:35]} 23. axb5 {[%emt 0:00:30]} axb5 {[%emt 0:00:21]} 24. Kh2 {[%emt 0:00:43]} Nfd7 {[%emt 0:07:44]} 25. Rfb1 {[%emt 0:00:51]} Na6 {[%emt 0:02:48] Excellent horsemanship.} 26. Qa3 {[%emt 0:00:15]} Ndc5 {[%emt 0:00:33]} 27. Nf1 {[%emt 0:01:12]} Bd7 {[%emt 0:00:25]} 28. Ng3 {[%emt 0:00:51]} g6 {[%emt 0:00:36]} 29. f4 {[%emt 0:01:51]} Rb7 {[%emt 0:02:13]} 30. Qc1 {[%emt 0:02:13]} b4 {[%emt 0:08:59] Weighted Error Value: White=0.08 (flawless) /Black=0.09 (flawless) .  Mistake:       	---       	Black=1      Inaccurate:     	White=2     	Black=2      OK:         	White=7     	Black=3      Best:        	White=1     	---        Strong:       	---       	Black=2} (30... Be8 $14) 1/2-1/2

[Event "Swiss National League-A 2024"]
[Site "Luzern"]
[Date "2024.10.12"]
[Round "8.35"]
[White "Wildi, Marcel"]
[Black "Riff, Jean-Noel"]
[Result "1/2-1/2"]
[ECO "C11"]
[WhiteElo "2213"]
[BlackElo "2406"]
[Annotator "TA"]
[PlyCount "80"]
[EventDate "2023.10.03"]
[EventType "team-tourn"]
[EventCountry "SUI"]
[SourceTitle "playchess.com"]
[Source "ChessBase"]
[SourceQuality "1"]
[TimeControl "40/8400+30:20/3000+30:900+30"]

{[%evp 9,80,22,34,0,0,-9,0,0,0,0,37,15,11,0,16,22,46,43,65,43,44,16,8,13,33,26,28,-2,10,1,44,53,73,0,30,12,41,55,93,93,82,76,52,68,56,68,74,60,72,12,95,15,9,10,8,8,48,-39,-36,-35,0,0,0,0,0,-9,0,0,8,8,19,16,16]} 1. d4 {[%emt 0:40:07]} Nf6 {[%emt 0:40:05]} 2. Nc3 {[%emt 0:00:06]} e6 {[%emt 0:01:44]} 3. e4 {[%emt 0:03:30]} d5 {[%emt 0:00:53]} 4. exd5 {[%emt 0:00:34]} Nxd5 {[%emt 0:01:42]} 5. Bd3 {[%emt 0:04:12]} c5 {[%emt 0:03:12]} 6. Nge2 {[%emt 0:14:21]} Nxc3 {[%emt 0:10:37]} 7. bxc3 {[%emt 0:04:18]} Be7 {[%emt 0:00:44]} 8. O-O {[%emt 0:02:38]} O-O {[%emt 0:00:58]} 9. Be4 {[%emt 0:02:27]} Nc6 {[%emt 0:04:22][%cal Bb8c6,Bc6a5,Ba5c4][%mdl 32]} 10. Be3 {[%emt 0:05:14]} Qa5 {[%emt 0:03:39]} 11. Qb1 {[%emt 0:10:06]} Qa6 {[%emt 0:07:14]} 12. Re1 {[%emt 0:01:58]} Na5 {[%emt 0:02:17]} 13. dxc5 {[%emt 0:17:40]} e5 {[%emt 0:06:36][%cal Be6e5,Be5e4][%mdl 32]} 14. f4 {[%emt 0:08:42]} Nc4 {[%emt 0:10:04]} 15. Bd3 {[%emt 0:05:09]} e4 {[%emt 0:00:01]} 16. Bxc4 {[%emt 0:05:41]} Qxc4 {[%emt 0:00:09]} 17. Qb4 {[%emt 0:15:26]} Qe6 {[%emt 0:01:20][%cal Ob7b6]} 18. f5 {[%emt 0:02:27]} Qc6 {[%emt 0:03:28]} 19. Ng3 {[%emt 0:00:28][%cal Oa2a4]} Bh4 {[%emt 0:00:01]} (19... b6 {seems wilder.} 20. Bf2 e3 21. Bxe3 Bb7) 20. Rf1 {[%emt 0:00:17]} Re8 {[%emt 0:00:12][%cal Ob7b6]} 21. Rab1 {[%emt 0:00:34] White is more active.} (21. Rad1 $16) 21... Bf6 {[%emt 0:01:32][%cal Ob7b6]} 22. c4 {[%emt 0:00:42]} b6 {[%emt 0:01:39]} 23. Qb5 {[%emt 0:01:13] Prevents Ba6.} Qxb5 {[%emt 0:01:45]} 24. cxb5 {[%emt 0:00:08]} bxc5 {[%emt 0:00:01]} 25. Bxc5 {[%emt 0:00:09]} Bb7 {[%emt 0:00:02]} 26. Be3 {[%emt 0:02:56]} Rec8 {[%emt 0:00:32]} 27. Rf2 {[%emt 0:00:18]} Rc3 {[%emt 0:00:17]} 28. Rb3 {[%emt 0:01:03]} Rc4 {[%emt 0:00:01]} 29. Nf1 {[%emt 0:00:42]} (29. Rd2 $16) 29... Rac8 {[%emt 0:00:18] [#]} (29... Kf8 $11) 30. Bxa7 {[%emt 0:01:05]} (30. Rd2 $1 $16) 30... Ra4 $36 {[%emt 0:00:03][%mdl 2048] Black has good play.} 31. Be3 {[%emt 0:00:46]} Rxa2 {[%emt 0:00:01] [#]} 32. c3 $1 {[%emt 0:00:22]} Ra1 {[%emt 0:00:25][%cal Ob7d5]} (32... Rxf2 {simplifies} 33. Kxf2 Rxc3 34. Rxc3 Bxc3 35. Bc5 g6) 33. g4 {[%emt 0:00:49]} ({Better is} 33. Rd2 $1 $14) 33... Bd5 $15 {[%emt 0:00:19]} 34. Rbb2 {[%emt 0:00:50]} Bxc3 {[%emt 0:04:51]} 35. Rbc2 {[%emt 0:00:01] The position is equal.} Bb3 {[%emt 0:00:09] This pair of bishops is nice.} 36. b6 {[%emt 0:00:19][%cal Oc2c3] Threatens to win with Rxc3!} Bxc2 {[%emt 0:00:24]} 37. b7 {[%emt 0:01:07]} Rb8 {[%emt 0:00:43]} 38. Rxc2 {[%emt 0:00:07]} Ra3 {[%emt 0:00:02]} 39. Bd2 {[%emt 0:00:57]} Rxb7 {[%emt 0:00:30]} 40. Rxc3 {[%emt 0:00:14]} Rxc3 {[%emt 0:00:05] Weighted Error Value: White=0.16 (very precise) /Black=0.16 (very precise) .  Mistake:       	White=4     	Black=1      Inaccurate:     	White=2     	Black=7      OK:         	White=13    	Black=11     Best:        	White=1     	Black=1} 1/2-1/2

[Event "Swiss National League-A 2024"]
[Site "Luzern"]
[Date "2024.10.12"]
[Round "8.36"]
[White "Vernay, Clovis"]
[Black "Knoedler, Dieter"]
[Result "1-0"]
[ECO "E11"]
[WhiteElo "2485"]
[BlackElo "2265"]
[Annotator "TA"]
[PlyCount "77"]
[EventDate "2023.10.03"]
[EventType "team-tourn"]
[EventCountry "SUI"]
[SourceTitle "playchess.com"]
[Source "ChessBase"]
[SourceQuality "1"]
[TimeControl "40/8400+30:20/3000+30:900+30"]

{[%evp 11,77,25,42,22,28,25,42,19,27,20,25,23,18,22,14,17,24,21,30,30,60,45,68,58,78,59,82,49,81,78,72,83,73,70,135,118,113,98,112,99,99,108,91,108,109,121,126,111,101,64,140,19,68,73,82,58,91,66,118,132,347,351,777,768,777,781,1011,686]} 1. d4 {[%emt 0:41:27]} e6 {[%emt 0:41:35]} 2. c4 {[%emt 0:01:20]} Nf6 {[%emt 0:00:35]} 3. Nf3 {[%emt 0:04:36]} Bb4+ {[%emt 0:01:21]} 4. Bd2 {[%emt 0:00:10]} c5 {[%emt 0:00:06]} 5. Bxb4 {[%emt 0:01:25]} cxb4 {[%emt 0:00:05]} 6. e3 {[%emt 0:00:08]} b6 {[%emt 0:06:01]} 7. Be2 {[%emt 0:03:08]} Bb7 {[%emt 0:01:05]} 8. O-O {[%emt 0:00:11]} O-O {[%emt 0:00:09]} 9. Ne5 {[%emt 0:01:55] White is slightly better.} d6 {[%emt 0:04:38]} 10. Bf3 {[%emt 0:04:59]} Qc7 {[%emt 0:01:42]} 11. Bxb7 {[%emt 0:02:01]} Qxb7 {[%emt 0:00:12]} 12. Nd3 {[%emt 0:00:14]} Rc8 {[%emt 0:05:44]} 13. Qb3 {[%emt 0:05:34]} a5 {[%emt 0:04:36]} 14. a3 {[%emt 0:01:16]} bxa3 {[%emt 0:11:27]} 15. Nxa3 {[%emt 0:08:51]} Nbd7 {[%emt 0:08:26]} 16. Nb5 {[%emt 0:00:47]} Qb8 {[%emt 0:01:32]} 17. Rfc1 {[%emt 0:01:42]} h6 {[%emt 0:02:25]} 18. Qa4 {[%emt 0:11:06]} Nf8 {[%emt 0:06:49]} 19. Rab1 {[%emt 0:03:36]} Rd8 {[%emt 0:08:09]} 20. b4 {[%emt 0:01:50]} e5 {[%emt 0:06:40]} 21. bxa5 {[%emt 0:14:00]} Rxa5 {[%emt 0:02:14]} 22. Qd1 {[%emt 0:02:38]} Ra8 {[%emt 0:07:16]} (22... Ng6 $14) 23. Nb4 $16 {[%emt 0:05:49]} Qc8 {[%emt 0:02:52] Against Nc6} 24. Nc3 {[%emt 0:08:24]} Ng6 {[%emt 0:11:10]} 25. Ncd5 {[%emt 0:12:14] Dodges Ne7} Nxd5 {[%emt 0:01:42]} 26. Nxd5 {[%emt 0:00:04]} Qf5 {[%emt 0:00:07]} 27. Rb2 {[%emt 0:00:04] Inhibits Ra2.} (27. Rxb6 Ra2 28. Qe1 exd4 $14) (27. Nxb6 $6 Ra2 28. Qf3 Qxf3 29. gxf3 exd4 30. exd4 Nf4 $11) 27... Qg5 {[%emt 0:01:28]} 28. Rcb1 {[%emt 0:03:27]} Ra3 {[%emt 0:05:04]} 29. dxe5 {[%emt 0:03:47]} dxe5 {[%emt 0:01:26]} 30. Qf3 {[%emt 0:00:10]} Rd6 {[%emt 0:03:59]} ({Black should try} 30... Re8 $14) 31. Qg3 {[%emt 0:03:40]} (31. Rxb6 $6 Nh4 32. Qg3 Rxb6 33. Nxb6 Rc3 $14) (31. g3 $16) 31... Qd8 {[%emt 0:00:45]} (31... Qxg3 $11 {deserves consideration.} 32. hxg3 e4) 32. h3 $14 {[%emt 0:00:11][%cal Og3f3]} (32. Nxb6 $2 {leads to mate.} Rd1+ 33. Rxd1 Qxd1#) (32. Rxb6 $2 Rxb6 33. Nxb6 Qxb6 $19) 32... Ra6 {[%emt 0:01:52]} 33. e4 {[%emt 0:00:29][%cal Oc4c5] [#] aiming for c5!} Kh7 {[%emt 0:00:15]} 34. Qf3 {[%emt 0:00:34]} Nh4 {[%emt 0:01:16]} (34... Nf4 $1 $14) 35. Qxf7 {[%emt 0:00:37]} Qg5 {[%emt 0:00:15] Prevents g3. Loses the game.} (35... Rg6 $16 {is a better defense.}) 36. g3 $1 $18 {[%emt 0:03:34] Active counter play!} (36. Nxb6 $2 Qxg2#) 36... b5 $2 {[%emt 0:01:44] [#]} (36... Qg6 37. Qxg6+ Rxg6) 37. cxb5 {[%emt 0:01:51] White is clearly winning.} Ra3 {[%emt 0:00:41]} 38. Rb3 {[%emt 0:00:23]} Ra2 {[%emt 0:01:01]} 39. Re3 {[%emt 0:00:43] Weighted Error Value: White=0.13 (very precise) /Black=0.28 (precise) .  Loses game:     	---       	Black=1      Mistake:       	White=1     	Black=5      Inaccurate:     	White=2     	Black=3      OK:         	White=11    	Black=7      Strong:       	White=1     	---} 1-0

[Event "Swiss National League-A 2024"]
[Site "Luzern"]
[Date "2024.10.12"]
[Round "8.37"]
[White "Seitz, Patrick"]
[Black "Burri, Quentin"]
[Result "0-1"]
[ECO "B89"]
[WhiteElo "2151"]
[BlackElo "2418"]
[Annotator "RC"]
[PlyCount "112"]
[EventDate "2023.10.03"]
[EventType "team-tourn"]
[EventCountry "SUI"]
[SourceTitle "playchess.com"]
[Source "ChessBase"]
[SourceQuality "1"]
[TimeControl "40/8400+30:20/3000+30:900+30"]

1. e4 {[%emt 0:40:04]} c5 {[%emt 0:40:08]} 2. Nf3 {[%emt 0:00:06]} d6 {[%emt 0:00:07]} 3. d4 {[%emt 0:00:04]} cxd4 {[%emt 0:00:05]} 4. Nxd4 {[%emt 0:00:05]} Nf6 {[%emt 0:00:06]} 5. Nc3 {[%emt 0:00:06]} Nc6 {[%emt 0:00:44]} 6. Bc4 {[%emt 0:00:17]} e6 {[%emt 0:00:48]} 7. Be3 {[%emt 0:00:39]} a6 {[%emt 0:00:21]} 8. Qe2 {[%emt 0:01:17]} Be7 {[%emt 0:01:00]} 9. O-O-O {[%emt 0:00:23]} Nxd4 {[%emt 0:00:44]} 10. Bxd4 {[%emt 0:04:06]} b5 {[%emt 0:00:35]} 11. Bb3 {[%emt 0:04:25]} O-O {[%emt 0:00:57]} 12. g4 {[%emt 0:03:35]} b4 {[%emt 0:03:39]} 13. Na4 {[%emt 0:02:48]} Bd7 {[%emt 0:00:34]} 14. g5 {[%emt 0:07:52]} Bb5 {[%emt 0:02:36]} 15. Qe1 {[%emt 0:07:44]} Nd7 {[%emt 0:03:59]} 16. Qxb4 {[%emt 0:01:58]} e5 {[%emt 0:04:44]} 17. Be3 {[%emt 0:10:35]} d5 {[%emt 0:00:31]} 18. Qe1 {[%emt 0:00:06]} d4 {[%emt 0:01:15]} 19. Bd2 {[%emt 0:00:05]} Bxg5 {[%emt 0:04:31]} 20. Rg1 {[%emt 0:04:38]} Bf6 {[%emt 0:02:06]} 21. Bb4 {[%emt 0:05:50]} Re8 {[%emt 0:05:55]} 22. Nc5 {[%emt 0:00:48]} Nxc5 {[%emt 0:01:07]} 23. Bxc5 {[%emt 0:00:02]} Qc7 {[%emt 0:02:04]} 24. Ba3 {[%emt 0:04:41]} Rac8 {[%emt 0:02:13]} 25. Qd2 {[%emt 0:03:38]} a5 {[%emt 0:04:35]} 26. Rg2 {[%emt 0:06:07]} Bc6 {[%emt 0:03:52]} 27. f3 {[%emt 0:02:10]} a4 {[%emt 0:00:41]} 28. Bd5 {[%emt 0:06:51]} Bxd5 {[%emt 0:02:33]} 29. exd5 {[%emt 0:00:03]} Qd7 {[%emt 0:02:09]} 30. d6 {[%emt 0:01:55]} Re6 {[%emt 0:00:42]} 31. Kb1 {[%emt 0:05:10]} g6 {[%emt 0:00:46]} 32. Re2 {[%emt 0:05:35]} Bg7 {[%emt 0:04:35]} 33. Qd3 {[%emt 0:03:21]} Bf8 {[%emt 0:09:02]} 34. f4 {[%emt 0:02:11]} Bxd6 {[%emt 0:00:32]} 35. Bxd6 {[%emt 0:01:39]} Qxd6 {[%emt 0:00:06]} 36. fxe5 {[%emt 0:00:10]} Rxe5 {[%emt 0:00:03]} 37. Rxe5 {[%emt 0:00:11]} Qxe5 {[%emt 0:00:03]} 38. Qxd4 {[%emt 0:00:06]} Qxh2 {[%emt 0:00:08]} 39. Qxa4 {[%emt 0:00:06]} Qe2 {[%emt 0:00:06]} 40. c3 {[%emt 0:00:50]} h5 {[%emt 0:00:29]} 41. Qc2 {[%emt 0:51:09]} Qc4 {[%emt 0:54:03]} 42. Qd3 {[%emt 0:03:45]} Qg4 {[%emt 0:00:57]} 43. Qd4 {[%emt 0:01:43]} Qf5+ {[%emt 0:04:47]} 44. Qd3 {[%emt 0:00:06]} Qxd3+ {[%emt 0:02:40]} 45. Rxd3 {[%emt 0:00:02]} h4 {[%emt 0:00:07]} 46. Kc2 {[%emt 0:01:41]} Kg7 {[%emt 0:00:23]} 47. a4 {[%emt 0:00:45]} Rh8 {[%emt 0:03:22]} 48. Rd1 {[%emt 0:02:22]} h3 {[%emt 0:00:59]} 49. Rh1 {[%emt 0:00:47]} g5 {[%emt 0:03:05]} 50. Kd3 {[%emt 0:00:16]} g4 {[%emt 0:00:36]} 51. Ke4 {[%emt 0:00:11]} g3 {[%emt 0:01:50]} 52. Kf3 {[%emt 0:00:19]} g2 {[%emt 0:00:21]} 53. Rc1 {[%emt 0:02:57]} Rh6 {[%emt 0:00:41]} 54. Kg3 {[%emt 0:01:38]} Rf6 {[%emt 0:00:28]} 55. Rg1 {[%emt 0:00:47]} Rf1 {[%emt 0:02:30]} 56. Kh2 {[%emt 0:00:07]} Kf6 {[%emt 0:00:53]} 0-1

[Event "Swiss National League-A 2024"]
[Site "Luzern"]
[Date "2024.10.12"]
[Round "8.38"]
[White "Toktomushev, Teimur"]
[Black "Marentini, Marcel"]
[Result "1-0"]
[ECO "E15"]
[WhiteElo "2246"]
[BlackElo "2143"]
[Annotator "RC"]
[PlyCount "63"]
[EventDate "2023.10.03"]
[EventType "team-tourn"]
[EventCountry "SUI"]
[SourceTitle "playchess.com"]
[Source "ChessBase"]
[SourceQuality "1"]
[TimeControl "40/8400+30:20/3000+30:900+30"]

1. d4 {[%emt 0:40:02]} Nf6 {[%emt 0:40:26]} 2. c4 {[%emt 0:00:05]} e6 {[%emt 0:00:16]} 3. Nf3 {[%emt 0:00:04]} b6 {[%emt 0:00:36]} 4. g3 {[%emt 0:00:06]} Ba6 {[%emt 0:01:07]} 5. Qc2 {[%emt 0:00:10]} c5 {[%emt 0:04:37]} 6. d5 {[%emt 0:00:07]} exd5 {[%emt 0:01:49]} 7. cxd5 {[%emt 0:00:06]} d6 {[%emt 0:01:38]} 8. e4 {[%emt 0:14:12]} Bxf1 {[%emt 0:04:50]} 9. Kxf1 {[%emt 0:00:07]} Be7 {[%emt 0:03:41]} 10. Kg2 {[%emt 0:00:20]} O-O {[%emt 0:00:47]} 11. Nc3 {[%emt 0:00:10]} Na6 {[%emt 0:08:30]} 12. Re1 {[%emt 0:01:18]} Nc7 {[%emt 0:00:17]} 13. Bf4 {[%emt 0:08:37]} b5 {[%emt 0:10:03]} 14. Rad1 {[%emt 0:05:26]} b4 {[%emt 0:06:33]} 15. Nb1 {[%emt 0:01:50]} Nd7 {[%emt 0:13:24]} 16. Nbd2 {[%emt 0:08:53]} g5 {[%emt 0:09:01]} 17. Be3 {[%emt 0:01:46]} g4 {[%emt 0:01:19]} 18. Ng1 {[%emt 0:00:09]} Ne5 {[%emt 0:00:16]} 19. f4 {[%emt 0:02:51]} gxf3+ {[%emt 0:00:48]} 20. Ngxf3 {[%emt 0:00:04]} Bf6 {[%emt 0:05:13]} 21. Bf4 {[%emt 0:05:48]} Ng6 {[%emt 0:01:54]} 22. Bxd6 {[%emt 0:07:08]} Qxd6 {[%emt 0:01:58]} 23. e5 {[%emt 0:00:04]} Qxd5 {[%emt 0:16:20]} 24. Ne4 {[%emt 0:00:27]} Qb7 {[%emt 0:00:16]} 25. Nxf6+ {[%emt 0:04:14]} Kg7 {[%emt 0:00:34]} 26. Nh5+ {[%emt 0:16:53]} Kg8 {[%emt 0:01:15]} 27. Qf5 {[%emt 0:00:34]} Ne6 {[%emt 0:04:19]} 28. Rd7 {[%emt 0:04:23]} Qc6 {[%emt 0:06:07]} 29. Red1 {[%emt 0:16:27]} Rad8 {[%emt 0:01:40]} 30. R1d6 {[%emt 0:01:57]} Qa8 {[%emt 0:02:41]} 31. Nf6+ {[%emt 0:02:32]} Kg7 {[%emt 0:02:40]} 32. Qxe6 {[%emt 0:00:29]} 1-0